bitfinex/quotes_BTCUSD_20220103
["timestamp","ask_amount","ask_price","bid_price","bid_amount"]
[1641193311821,0.03412231,46924.0,46922.0,0.21118491]
[1641193312420,0.03691018,46924.0,46922.0,0.21118491]
[1641193312823,0.03927737,46924.0,46922.0,0.21118491]
[1641193313473,0.04206524,46924.0,46922.0,0.21118491]
[1641193313872,0.04443243,46924.0,46922.0,0.21118491]
[1641193314474,0.0472203,46924.0,46922.0,0.21118491]
[1641193314874,0.04958749,46924.0,46922.0,0.21118491]
[1641193315574,0.04970043,46924.0,46922.0,0.21118491]
[1641193315774,0.05195468,46924.0,46922.0,0.21118491]
[1641193316275,0.04916681,46924.0,46922.0,0.21118491]
[1641193316922,0.051534,46924.0,46922.0,0.21118491]
[1641193317114,0.05153401,46924.0,46922.0,0.21118491]
[1641193318015,0.0539012,46924.0,46922.0,0.21118491]
[1641193318215,0.05390121,46924.0,46922.0,0.21118491]
[1641193319017,0.0562684,46924.0,46922.0,0.21118491]
[1641193319218,0.05626841,46924.0,46922.0,0.21118491]
[1641193320018,0.0586356,46924.0,46922.0,0.21118491]
[1641193320220,0.05863561,46924.0,46922.0,0.21118491]
[1641193320865,0.625768,46923.0,46922.0,0.21118491]
[1641193321065,0.34368188,46923.0,46922.0,0.21118491]
[1641193321366,0.86368188,46923.0,46922.0,0.21118491]
[1641193321563,0.34368188,46923.0,46922.0,0.21118491]
[1641193321965,0.34604907,46923.0,46922.0,0.21118491]
[1641193322367,0.34883695,46923.0,46922.0,0.21118491]
[1641193322566,1.05367534,46923.0,46922.0,0.21118491]
[1641193322964,1.05378828,46923.0,46922.0,0.21118491]
[1641193323163,1.05615547,46923.0,46922.0,0.21118491]
[1641193323365,1.05894335,46923.0,46922.0,0.21118491]
[1641193323566,0.35410496,46923.0,46922.0,0.21118491]
[1641193323963,0.3542179,46923.0,46922.0,0.21118491]
[1641193324164,1.06142348,46923.0,46922.0,0.21118491]
[1641193324427,1.06421136,46923.0,46922.0,0.21118491]
[1641193325024,1.0643243,46923.0,46922.0,0.21118491]
[1641193325222,1.06669149,46923.0,46922.0,0.21118491]
[1641193325422,1.06947937,46923.0,46922.0,0.21118491]
[1641193326024,1.06947937,46923.0,46922.0,0.21107197]
[1641193326223,1.07184656,46923.0,46922.0,0.21107197]
[1641193326424,1.07463444,46923.0,46922.0,0.21107197]
[1641193327226,1.07700163,46923.0,46922.0,0.21107197]
[1641193327427,1.07978951,46923.0,46922.0,0.21107197]
[1641193328028,0.37495112,46923.0,46922.0,0.21107197]
[1641193328473,0.377739,46923.0,46922.0,0.21107197]
[1641193329271,0.79660728,46923.0,46922.0,0.21107197]
[1641193329471,0.092613,46923.0,46922.0,0.21107197]
[1641193329670,0.09498019,46923.0,46922.0,0.21107197]
[1641193330075,0.4941806,46923.0,46922.0,0.21107197]
[1641193330471,0.5941806,46923.0,46922.0,0.21107197]
[1641193330672,0.30477346,46923.0,46922.0,0.21107197]
[1641193331472,0.96398063,46923.0,46922.0,0.21107197]
[1641193331672,0.96634782,46923.0,46922.0,0.21107197]
[1641193332120,0.96634782,46923.0,46922.0,0.20828409]
[1641193334723,0.96871501,46923.0,46922.0,0.20828409]
[1641193334926,0.96634782,46923.0,46922.0,0.20828409]
[1641193335776,0.96871501,46923.0,46922.0,0.20828409]
[1641193336877,0.9710822,46923.0,46922.0,0.20828409]
[1641193339710,0.91115612,46923.0,46922.0,0.20828409]
[1641193340110,1.12391639,46923.0,46922.0,0.20828409]
[1641193340913,1.12628358,46923.0,46922.0,0.20828409]
[1641193341311,0.46707641,46923.0,46922.0,0.20828409]
[1641193341711,0.25431614,46923.0,46922.0,0.20828409]
[1641193342112,0.15668333,46923.0,46922.0,0.20828409]
[1641193343157,0.15905052,46923.0,46922.0,0.20828409]
[1641193344160,0.16141771,46923.0,46922.0,0.20828409]
[1641193344761,0.78012741,46923.0,46922.0,0.20828409]
[1641193345164,0.26141771,46923.0,46922.0,0.20828409]
[1641193345563,0.25905052,46923.0,46922.0,0.20828409]
[1641193345760,0.87776022,46923.0,46922.0,0.209469]
[1641193346359,0.77764728,46923.0,46922.0,0.209469]
[1641193346560,0.77764728,46923.0,46922.0,0.20710181]
[1641193347410,1.08862783,46923.0,46922.0,0.20698887]
[1641193348009,0.87764728,46923.0,46922.0,0.20698887]
[1641193352375,0.8748594,46923.0,46922.0,0.20698887]
[1641193353276,0.8748594,46923.0,46922.0,0.20420099]
[1641193353978,1.08709196,46923.0,46922.0,0.20420099]
[1641193354437,1.08821047,46923.0,46922.0,0.20420099]
[1641193355931,0.8748594,46923.0,46922.0,0.20420099]
[1641193356334,1.09303106,46923.0,46922.0,0.20420099]
[1641193366371,0.8748594,46923.0,46922.0,0.20420099]
[1641193366573,0.87249221,46923.0,46922.0,0.20420099]
[1641193367372,0.87237927,46923.0,46922.0,0.20420099]
[1641193367572,0.87237927,46923.0,46922.0,0.2018338]
[1641193368371,0.87237927,46923.0,46922.0,0.20172086]
[1641193368773,0.77237927,46923.0,46922.0,0.20172086]
[1641193369809,1.05000203,46923.0,46922.0,0.20172086]
[1641193370109,1.15000203,46923.0,46922.0,0.20172086]
[1641193370311,0.87237927,46923.0,46922.0,0.20172086]
[1641193370911,1.15066034,46923.0,46922.0,0.20172086]
[1641193372412,0.87237927,46923.0,46922.0,0.20172086]
[1641193373274,1.15299158,46923.0,46922.0,0.20172086]
[1641193373474,1.1502037,46923.0,46922.0,0.20172086]
[1641193373875,1.1502037,46923.0,46920.0,0.053304]
[1641193374076,1.1502037,46923.0,46920.0,0.04424608]
[1641193374077,0.37629828,46921.0,46920.0,0.04424608]
[1641193374277,0.42379828,46921.0,46919.0,0.106601]
[1641193374476,0.2833203,46920.0,46919.0,0.10381312]
[1641193374680,0.3865883,46920.0,46919.0,0.10381312]
[1641193375079,1.40641702,46920.0,46919.0,0.10381312]
[1641193375578,1.12309672,46920.0,46918.0,0.106608]
[1641193375778,0.055768,46919.0,46918.0,0.106608]
[1641193376377,0.95105825,46919.0,46918.0,0.106608]
[1641193376577,1.05105825,46919.0,46918.0,0.106608]
[1641193377627,1.05105825,46919.0,46918.0,0.316608]
[1641193377825,1.05656853,46919.0,46918.0,0.316608]
[1641193379528,0.7744777,46919.0,46918.0,0.316608]
[1641193381262,1.05768671,46919.0,46918.0,0.316608]
[1641193382061,1.10518671,46919.0,46918.0,0.316608]
[1641193387129,0.48647701,46919.0,46918.0,0.316608]
[1641193388576,0.48647701,46919.0,46918.0,0.31424081]
[1641193389375,0.48647701,46919.0,46918.0,0.31412787]
[1641193391377,0.48587261,46919.0,46918.0,0.31412787]
[1641193392233,0.48715548,46919.0,46918.0,0.31412787]
[1641193392434,0.84715548,46919.0,46918.0,0.31412787]
[1641193392635,0.48715548,46919.0,46918.0,0.31412787]
[1641193392833,1.109847,46919.0,46918.0,0.21]
[1641193395433,1.109847,46919.0,46918.0,0.17566531]
[1641193401425,0.82663799,46919.0,46918.0,0.17566531]
[1641193401626,0.83152677,46919.0,46918.0,0.17566531]
[1641193404272,0.83152677,46919.0,46918.0,0.16566531]
[1641193404777,0.6827439,46919.0,46918.0,0.46274147]
[1641193405078,0.6275803,46919.0,46918.0,0.46274147]
[1641193405577,0.00488878,46919.0,46918.0,0.46274147]
[1641193406474,0.00488878,46919.0,46918.0,0.16566531]
[1641193408120,0.00488878,46919.0,46918.0,0.16066531]
[1641193408319,0.06005078,46919.0,46918.0,0.16066531]
[1641193408516,0.76599687,46919.0,46918.0,0.16066531]
[1641193408916,0.06005078,46919.0,46918.0,0.16066531]
[1641193409717,0.06005078,46919.0,46918.0,0.15829812]
[1641193410319,0.60621558,46919.0,46918.0,0.15829812]
[1641193410519,0.60621558,46919.0,46918.0,0.15818518]
[1641193416417,0.60621558,46919.0,46918.0,0.1553973]
[1641193429435,0.70621558,46919.0,46918.0,0.1553973]
[1641193430725,0.70621558,46919.0,46918.0,0.15303011]
[1641193431523,1.03163832,46919.0,46918.0,0.15291717]
[1641193432626,0.70621558,46919.0,46918.0,0.15291717]
[1641193436168,0.75371558,46919.0,46918.0,0.15291717]
[1641193437425,0.75371558,46919.0,46918.0,0.15012929]
[1641193446927,0.7488268,46919.0,46918.0,0.15012929]
[1641193447130,0.74871558,46919.0,46918.0,0.15012929]
[1641193449280,0.7499989,46919.0,46918.0,0.15012929]
[1641193449775,0.75488768,46919.0,46918.0,0.15012929]
[1641193451477,0.75360436,46919.0,46918.0,0.15012929]
[1641193451677,0.75360436,46919.0,46918.0,0.1477621]
[1641193452618,0.75360436,46919.0,46918.0,0.14764916]
[1641193456172,0.75484322,46919.0,46918.0,0.14764916]
[1641193456375,0.75484322,46919.0,46908.0,0.00011]
[1641193456376,1.6,46918.0,46908.0,0.00011]
[1641193456571,0.00123728,46910.0,46908.0,0.00011]
[1641193456771,0.102545,46909.0,46908.0,0.00011]
[1641193457176,0.38980461,46909.0,46908.0,0.00011]
[1641193457370,0.8126591,46909.0,46908.0,0.00011]
[1641193457970,0.9126591,46909.0,46908.0,0.00011]
[1641193458571,0.9126591,46909.0,46905.0,0.06166406]
[1641193458770,0.9659781,46909.0,46908.0,0.21]
[1641193460234,0.54312361,46909.0,46908.0,0.21]
[1641193461037,0.54801339,46909.0,46908.0,0.21]
[1641193463270,0.54801339,46909.0,46908.0,0.185]
[1641193463571,1.08473086,46909.0,46908.0,0.185]
[1641193469639,0.15995369,46908.0,46905.0,0.06166406]
[1641193469938,0.055045,46907.0,46905.0,0.06166406]
[1641193472280,0.70680236,46906.0,46905.0,0.06166406]
[1641193472479,0.76184736,46906.0,46905.0,0.00834706]
[1641193472683,0.81516136,46906.0,46905.0,0.00597987]
[1641193473782,0.81516136,46906.0,46905.0,0.00586693]
[1641193476424,0.91516136,46906.0,46905.0,0.00586693]
[1641193476923,0.208359,46906.0,46905.0,0.00586693]
[1641193477624,0.108359,46906.0,46905.0,0.00586693]
[1641193479275,0.155859,46906.0,46905.0,0.00586693]
[1641193479674,0.155859,46906.0,46905.0,0.00307905]
[1641193482140,0.86290942,46906.0,46905.0,0.00307905]
[1641193482843,0.155859,46906.0,46905.0,0.00307905]
[1641193484845,0.74475134,46906.0,46905.0,0.00307905]
[1641193486078,0.69725134,46906.0,46905.0,0.27867184]
[1641193487178,0.108359,46906.0,46905.0,0.27867184]
[1641193489186,1.45,46903.0,46897.0,0.00022]
[1641193489447,1.87548279,46904.0,46892.0,0.59982124]
[1641193489448,0.053312,46894.0,46892.0,0.59982124]
[1641193489630,1.64836427,46893.0,46890.0,0.05131471]
[1641193489829,0.36461344,46892.0,46890.0,0.05131471]
[1641193490029,0.102545,46892.0,46890.0,0.05131471]
[1641193490334,0.202545,46892.0,46890.0,0.04304]
[1641193491328,0.102545,46892.0,46890.0,0.04304]
[1641193491729,0.8092158,46892.0,46890.0,0.04304]
[1641193491930,1.09150719,46892.0,46890.0,0.04304]
[1641193492129,1.19150719,46892.0,46890.0,0.04304]
[1641193492530,0.9092158,46892.0,46890.0,0.04304]
[1641193493174,0.8092158,46892.0,46890.0,0.04304]
[1641193493377,0.9092158,46892.0,46890.0,0.04304]
[1641193493774,0.9092158,46892.0,46891.0,7.281e-05]
[1641193494578,0.202545,46892.0,46890.0,0.04299987]
[1641193494777,0.102545,46892.0,46890.0,0.04299987]
[1641193495677,0.055045,46891.0,46890.0,0.04299987]
[1641193495880,0.102545,46891.0,46890.0,0.04299987]
[1641193498444,0.055045,46891.0,46890.0,0.04299987]
[1641193500538,0.055045,46891.0,46890.0,0.04282]
[1641193500782,0.16170428,46891.0,46890.0,0.04021199]
[1641193502987,0.44266514,46891.0,46890.0,0.04021199]
[1641193504926,0.16170428,46891.0,46890.0,0.04021199]
[1641193505725,0.43867197,46891.0,46890.0,0.04021199]
[1641193506326,0.16170428,46891.0,46890.0,0.04021199]
[1641193506727,1.01072787,46891.0,46890.0,0.04021199]
[1641193507129,0.16170428,46891.0,46890.0,0.04034135]
[1641193508196,0.44437379,46891.0,46890.0,0.04034135]
[1641193508599,0.59187379,46891.0,46890.0,0.04034135]
[1641193508798,1.05820391,46891.0,46890.0,0.04034135]
[1641193509596,1.15820391,46891.0,46890.0,0.04034135]
[1641193509899,1.4342878,46891.0,46890.0,0.04034135]
[1641193514044,1.732768,46891.0,46890.0,0.04034135]
[1641193514840,1.732768,46891.0,46890.0,0.03797416]
[1641193515772,1.732768,46891.0,46890.0,0.03786122]
[1641193516176,1.97627448,46891.0,46890.0,0.03786122]
[1641193516372,2.57121832,46891.0,46889.0,0.00044]
[1641193516576,1.97564705,46890.0,46889.0,0.00044]
[1641193516773,1.02314705,46890.0,46889.0,0.00044]
[1641193516972,1.12314705,46890.0,46889.0,0.00044]
[1641193517172,1.97214668,46890.0,46889.0,0.00044]
[1641193517972,3.09914668,46890.0,46889.0,0.00044]
[1641193518172,1.97214668,46890.0,46889.0,0.00044]
[1641193518575,2.01624307,46890.0,46889.0,0.00044]
[1641193520449,1.16724344,46890.0,46889.0,0.00044]
[1641193520649,0.055045,46889.0,46881.0,0.00035]
[1641193520848,0.21337178,46886.0,46881.0,0.00035]
[1641193521148,0.0475,46885.0,46881.0,0.00035]
[1641193521648,0.0475,46885.0,46879.0,0.00653325]
[1641193521850,0.053346,46882.0,46879.0,0.00653325]
[1641193522047,0.0475,46881.0,46879.0,0.00653325]
[1641193522248,0.0475,46881.0,46876.0,0.107129]
[1641193522650,1.9447035,46880.0,46877.0,0.053896]
[1641193522851,0.055045,46879.0,46877.0,0.053896]
[1641193523191,0.045045,46879.0,46877.0,0.053896]
[1641193524499,0.092545,46879.0,46877.0,0.053896]
[1641193525095,0.092545,46879.0,46877.0,0.00055]
[1641193528440,0.79661407,46879.0,46877.0,0.00055]
[1641193529548,2.0833495,46880.0,46877.0,0.30138532]
[1641193529549,0.78936907,46880.0,46877.0,0.30138532]
[1641193529743,0.78936907,46880.0,46877.0,0.40472432]
[1641193529942,0.78936907,46880.0,46878.0,0.13033]
[1641193530142,0.78936907,46880.0,46878.0,0.18033]
[1641193530143,0.67449831,46880.0,46878.0,0.18033]
[1641193530342,0.67449831,46880.0,46878.0,0.42032596]
[1641193530685,0.67449831,46880.0,46878.0,0.47366296]
[1641193530887,0.0853,46880.0,46878.0,0.47366296]
[1641193531083,0.0853,46880.0,46878.0,0.91336053]
[1641193531287,0.0853,46880.0,46879.0,0.346342]
[1641193531585,0.0853,46880.0,46878.0,0.053667]
[1641193531883,0.0853,46880.0,46879.0,0.26821867]
[1641193533489,0.0853,46880.0,46878.0,0.00033]
[1641193533688,0.045008,46879.0,46878.0,0.00033]
[1641193535042,0.045008,46879.0,46878.0,0.26789478]
[1641193535439,0.045008,46879.0,46878.0,0.00033]
[1641193535840,0.045008,46879.0,46878.0,0.26721472]
[1641193536242,0.7327331,46880.0,46878.0,0.26721472]
[1641193536441,0.045008,46879.0,46878.0,0.26869022]
[1641193536643,0.045008,46879.0,46878.0,0.26857728]
[1641193536843,0.045008,46879.0,46877.0,0.10723]
[1641193537043,0.045008,46879.0,46878.0,0.27067175]
[1641193537245,0.045008,46879.0,46877.0,0.10723]
[1641193537645,0.045008,46879.0,46877.0,0.053889]
[1641193538489,0.63420631,46879.0,46877.0,0.053889]
[1641193539090,0.58919831,46878.0,46877.0,0.053889]
[1641193539389,0.63420631,46878.0,46877.0,0.00055]
[1641193540890,0.63420631,46878.0,46877.0,0.21055]
[1641193541957,0.58919831,46878.0,46877.0,0.21055]
[1641193542543,0.58919831,46878.0,46877.0,0.249242]
[1641193542741,0.00489291,46879.0,46877.0,0.20776212]
[1641193542742,0.59409122,46879.0,46877.0,0.20776212]
[1641193543544,0.00489291,46879.0,46877.0,0.53372639]
[1641193543742,0.00489291,46879.0,46878.0,0.346342]
[1641193543941,0.00489291,46879.0,46877.0,0.53372639]
[1641193544145,0.00489291,46879.0,46878.0,0.346342]
[1641193544542,0.00489291,46879.0,46877.0,0.53372639]
[1641193544744,0.00489291,46879.0,46877.0,0.20776212]
[1641193547686,0.00489291,46879.0,46878.0,0.1]
[1641193547885,0.0853,46880.0,46878.0,0.51157168]
[1641193548086,0.0853,46880.0,46879.0,0.346342]
[1641193548285,0.00831308,46887.0,46879.0,0.476342]
[1641193548485,0.00831308,46887.0,46879.0,0.526342]
[1641193548684,0.00831308,46887.0,46881.0,0.38994728]
[1641193548885,0.00831308,46887.0,46882.0,0.396342]
[1641193549087,0.00831308,46887.0,46884.0,0.42187619]
[1641193549288,0.00831308,46887.0,46884.0,0.47187619]
[1641193550047,0.00831308,46887.0,46884.0,0.74146624]
[1641193550244,2.46619547,46890.0,46885.0,0.159994]
[1641193550447,2.46619547,46890.0,46884.0,0.58480524]
[1641193550448,0.045008,46889.0,46884.0,0.58480524]
[1641193550645,0.045008,46889.0,46884.0,0.26959005]
[1641193550844,0.045008,46889.0,46883.0,0.05]
[1641193551046,0.045008,46889.0,46882.0,0.05]
[1641193551243,0.045008,46889.0,46884.0,0.26507425]
[1641193551443,0.05333122,46888.0,46884.0,0.31507425]
[1641193551644,0.045008,46887.0,46885.0,0.053333]
[1641193552144,0.098343,46887.0,46877.0,0.20776212]
[1641193552944,0.05334095,46880.0,46877.0,0.26110312]
[1641193553396,0.10668395,46880.0,46877.0,0.26110312]
[1641193553597,0.10668395,46880.0,46877.0,0.20776212]
[1641193553796,0.045008,46879.0,46877.0,0.20776212]
[1641193553997,0.00489243,46879.0,46877.0,0.20776212]
[1641193554598,0.16493158,46879.0,46877.0,0.20776212]
[1641193555699,0.11158442,46879.0,46877.0,0.25776212]
[1641193556597,0.11158442,46879.0,46877.0,0.20776212]
[1641193556800,0.11158442,46879.0,46877.0,0.20539493]
[1641193557264,0.045008,46878.0,46877.0,0.20539493]
[1641193557764,0.045008,46878.0,46877.0,0.20528199]
[1641193561684,0.11158442,46879.0,46877.0,0.20528199]
[1641193562685,0.05823742,46879.0,46877.0,0.20528199]
[1641193563784,0.05823742,46879.0,46877.0,0.20249411]
[1641193564835,0.00489243,46879.0,46877.0,0.20249411]
[1641193565237,0.00489243,46879.0,46877.0,0.25249411]
[1641193565837,0.00489243,46879.0,46877.0,0.70908859]
[1641193566536,0.00489243,46879.0,46878.0,0.346342]
[1641193568592,0.00489243,46879.0,46878.0,0.346042]
[1641193569094,0.00489243,46879.0,46878.0,0.345742]
[1641193569294,0.00489243,46879.0,46877.0,0.70908859]
[1641193571694,0.00489243,46879.0,46877.0,0.65908859]
[1641193572939,0.00489243,46879.0,46877.0,0.25249411]
[1641193574639,0.00489243,46879.0,46877.0,0.49669198]
[1641193575681,0.00489243,46879.0,46877.0,0.25249411]
[1641193576479,0.00489243,46879.0,46877.0,0.24749411]
[1641193577879,0.00489243,46879.0,46877.0,0.24512692]
[1641193578881,0.00489243,46879.0,46877.0,0.24501398]
[1641193583484,0.00489243,46879.0,46877.0,0.29834698]
[1641193584780,0.00489243,46879.0,46877.0,0.2955591]
[1641193586681,0.00489243,46879.0,46877.0,0.2422261]
[1641193593893,0.00489243,46879.0,46878.0,0.546342]
[1641193595551,0.00489243,46879.0,46878.0,0.346342]
[1641193595747,0.00489243,46879.0,46877.0,0.25249411]
[1641193596650,0.00489243,46879.0,46878.0,0.346342]
[1641193599286,0.00489243,46879.0,46878.0,0.34397481]
[1641193599484,0.00489243,46879.0,46878.0,0.33897481]
[1641193599883,0.00489243,46879.0,46878.0,0.53897481]
[1641193604050,0.00489243,46879.0,46878.0,0.80764171]
[1641193604545,0.00489243,46879.0,46878.0,0.53897481]
[1641193607898,0.00489243,46879.0,46878.0,0.80434118]
[1641193608096,0.00489243,46879.0,46878.0,1.40892359]
[1641193608499,0.00489243,46879.0,46878.0,1.14355722]
[1641193609937,0.00489243,46879.0,46878.0,0.53897481]
[1641193620170,0.00489243,46879.0,46878.0,0.53660762]
[1641193635888,0.00452954,46879.0,46878.0,0.53660762]
[1641193636889,0.00452954,46879.0,46878.0,0.80081406]
[1641193637089,0.00452954,46879.0,46878.0,0.53660762]
[1641193637894,0.00452954,46879.0,46878.0,0.33660762]
[1641193641141,0.00452954,46879.0,46878.0,0.33424043]
[1641193659394,0.58872785,46885.0,46878.0,0.38757143]
[1641193659595,0.58872785,46885.0,46878.0,0.106663]
[1641193660598,0.58872785,46885.0,46878.0,0.053332]
[1641193661958,1.07846619,46886.0,46878.0,0.053332]
[1641193662351,0.81073481,46886.0,46884.0,0.31303755]
[1641193662551,0.70406907,46886.0,46884.0,0.31303755]
[1641193665053,0.70406907,46887.0,46884.0,0.31303755]
[1641193666913,0.70406907,46887.0,46886.0,0.29164813]
[1641193667112,0.76178207,46887.0,46886.0,0.29164813]
[1641193668917,0.75678207,46887.0,46886.0,0.29164813]
[1641193669319,0.69906907,46887.0,46886.0,0.29164813]
[1641193671246,0.05333101,46888.0,46886.0,0.29164813]
[1641193671447,0.053329,46889.0,46886.0,0.29164813]
[1641193672047,0.057713,46888.0,46886.0,0.29164813]
[1641193673049,0.057713,46888.0,46887.0,0.00296119]
[1641193673292,0.32474876,46888.0,46887.0,0.00296119]
[1641193673796,0.1066587,46889.0,46887.0,0.00296119]
[1641193674397,0.42618837,46889.0,46887.0,0.00296119]
[1641193675196,0.1599887,46889.0,46887.0,0.00296119]
[1641193675396,0.43049975,46889.0,46887.0,0.00296119]
[1641193675597,0.26555906,46888.0,46887.0,0.00296119]
[1641193675796,0.26654427,46888.0,46887.0,0.00296119]
[1641193675998,0.26906814,46888.0,46887.0,0.00296119]
[1641193676701,0.27116404,46888.0,46887.0,0.00296119]
[1641193677144,0.26778702,46888.0,46887.0,0.00296119]
[1641193677544,0.76831687,46888.0,46887.0,0.00296119]
[1641193677943,1.03340079,46888.0,46887.0,0.00296119]
[1641193678145,0.32279692,46888.0,46887.0,0.00296119]
[1641193678743,1.03340079,46888.0,46887.0,0.00296119]
[1641193678945,0.76831687,46888.0,46887.0,0.00296119]
[1641193679146,1.03618959,46888.0,46887.0,0.00296119]
[1641193679346,0.76831687,46888.0,46887.0,0.00296119]
[1641193679742,0.3220121,46888.0,46887.0,0.00296119]
[1641193680546,0.057713,46888.0,46887.0,0.00296119]
[1641193681191,0.81740016,46889.0,46887.0,0.00296119]
[1641193681392,0.3270315,46888.0,46887.0,0.00296119]
[1641193681591,0.057713,46888.0,46887.0,0.00296119]
[1641193683092,0.057713,46888.0,46887.0,0.21296119]
[1641193683291,0.81740016,46889.0,46887.0,0.21296119]
[1641193683493,0.27007243,46888.0,46887.0,0.21296119]
[1641193683693,0.81740016,46889.0,46887.0,0.21296119]
[1641193683893,0.71074116,46888.0,46887.0,0.21296119]
[1641193685952,0.76845416,46888.0,46887.0,0.21296119]
[1641193686352,0.057713,46888.0,46887.0,0.21296119]
[1641193687652,0.107713,46888.0,46887.0,0.21296119]
[1641193689392,0.057713,46888.0,46887.0,0.21296119]
[1641193689594,0.81740016,46889.0,46887.0,0.21296119]
[1641193689896,0.057713,46888.0,46887.0,0.21296119]
[1641193690093,0.81740016,46889.0,46887.0,0.21296119]
[1641193690695,0.057713,46888.0,46887.0,0.21296119]
[1641193693158,0.76845416,46888.0,46887.0,0.21296119]
[1641193693760,0.71074116,46888.0,46887.0,0.21414696]
[1641193695066,0.71074116,46889.0,46887.0,0.71498228]
[1641193695260,0.71074116,46889.0,46888.0,0.50083532]
[1641193695462,0.5922525,46889.0,46888.0,1.05055993]
[1641193695697,0.5922525,46889.0,46888.0,1.06272993]
[1641193695897,0.5922525,46889.0,46888.0,1.75744803]
[1641193696099,0.5922525,46889.0,46888.0,1.45661271]
[1641193696298,0.71074116,46891.0,46888.0,1.45661271]
[1641193696599,0.5922525,46895.0,46892.0,0.00128288]
[1641193696798,0.5922525,46895.0,46893.0,2.29972461]
[1641193696998,0.5922525,46895.0,46893.0,0.70102368]
[1641193697197,0.5922525,46895.0,46893.0,0.75102368]
[1641193697397,0.5922525,46895.0,46893.0,1.07285858]
[1641193697603,0.5922525,46897.0,46893.0,1.12616858]
[1641193698402,0.5922525,46898.0,46893.0,1.12616858]
[1641193698803,0.60052925,46898.0,46893.0,1.12616858]
[1641193699204,0.00827675,46898.0,46893.0,1.12616858]
[1641193699453,0.00827675,46898.0,46893.0,1.1273542]
[1641193701549,0.00827675,46898.0,46893.0,2.2543542]
[1641193705315,0.00827675,46898.0,46893.0,1.1273542]
[1641193705511,0.00827675,46898.0,46893.0,0.65211569]
[1641193705709,0.00827675,46898.0,46893.0,0.60081662]
[1641193705909,0.00827675,46898.0,46893.0,0.34750662]
[1641193706509,0.06159875,46898.0,46893.0,0.34750662]
[1641193706709,0.05332118,46895.0,46893.0,0.34750662]
[1641193706971,0.043312,46894.0,46893.0,0.00118562]
[1641193712113,0.043312,46894.0,46893.0,0.34750662]
[1641193712915,0.026502,46894.0,46893.0,0.34750662]
[1641193713313,0.026502,46894.0,46893.0,0.54750662]
[1641193714112,0.026502,46894.0,46893.0,0.54744662]
[1641193714555,0.026502,46894.0,46893.0,0.34744662]
[1641193715257,0.021502,46894.0,46893.0,0.34744662]
[1641193716555,0.021502,46894.0,46893.0,0.54744662]
[1641193716755,0.013942,46894.0,46893.0,0.54744662]
[1641193717153,0.013942,46894.0,46893.0,0.54662662]
[1641193718411,0.013942,46894.0,46893.0,0.34662662]
[1641193718612,0.013942,46894.0,46893.0,0.54662662]
[1641193722754,0.013942,46894.0,46893.0,0.20030562]
[1641193723955,0.013942,46894.0,46893.0,0.00030562]
[1641193725358,0.013942,46894.0,46891.0,0.053318]
[1641193725810,0.013942,46894.0,46891.0,0.31671359]
[1641193726015,0.013942,46894.0,46892.0,0.546321]
[1641193726210,0.013942,46894.0,46893.0,0.52346733]
[1641193726410,0.013942,46894.0,46893.0,0.86978833]
[1641193728214,0.013942,46894.0,46893.0,0.86357529]
[1641193728415,0.013942,46894.0,46893.0,0.86388558]
[1641193728618,0.013942,46894.0,46893.0,0.599634]
[1641193730563,0.013942,46894.0,46893.0,0.86524165]
[1641193730762,0.013942,46894.0,46893.0,0.599634]
[1641193731168,0.013942,46894.0,46893.0,0.86322362]
[1641193731377,0.013942,46894.0,46893.0,0.599634]
[1641193731765,0.013942,46894.0,46893.0,0.86833463]
[1641193731965,0.013942,46894.0,46893.0,0.599634]
[1641193734216,0.013942,46894.0,46893.0,0.86621706]
[1641193738165,0.013942,46894.0,46893.0,0.599634]
[1641193740998,0.013942,46894.0,46893.0,0.87345238]
[1641193742200,0.013942,46894.0,46893.0,0.599634]
[1641193742501,0.013942,46894.0,46893.0,1.20432729]
[1641193743102,0.013942,46894.0,46893.0,0.599634]
[1641193743301,0.013942,46894.0,46893.0,0.87568202]
[1641193746363,0.013942,46894.0,46893.0,1.48037531]
[1641193748398,0.013942,46894.0,46893.0,1.20432729]
[1641193749499,0.013942,46894.0,46893.0,0.599634]
[1641193751808,0.013942,46894.0,46893.0,0.86425452]
[1641193752552,0.013942,46894.0,46893.0,0.91425452]
[1641193753350,0.013942,46894.0,46893.0,1.51894781]
[1641193753751,0.013942,46894.0,46893.0,1.25432729]
[1641193757020,0.013942,46894.0,46893.0,1.20432729]
[1641193757221,0.013942,46894.0,46893.0,1.25432729]
[1641193757920,0.013942,46894.0,46893.0,0.649634]
[1641193760056,0.013942,46894.0,46893.0,0.599634]
[1641193762255,0.013942,46894.0,46893.0,0.86413953]
[1641193762455,0.013942,46894.0,46893.0,0.91413953]
[1641193763316,0.013942,46894.0,46893.0,0.649634]
[1641193763717,0.013942,46894.0,46893.0,1.25432729]
[1641193765220,0.013942,46894.0,46893.0,1.20432729]
[1641193765619,0.013942,46894.0,46893.0,0.599634]
[1641193766519,0.013942,46894.0,46893.0,0.649634]
[1641193767354,0.013942,46894.0,46893.0,0.93386499]
[1641193769053,0.013942,46894.0,46893.0,2.06086499]
[1641193772710,0.013942,46894.0,46893.0,1.776634]
[1641193776493,0.013942,46894.0,46893.0,0.649634]
[1641193780221,0.013942,46894.0,46893.0,1.25432455]
[1641193780824,0.013942,46894.0,46893.0,1.20432455]
[1641193781025,0.013942,46894.0,46893.0,1.25432455]
[1641193781224,0.013942,46894.0,46893.0,1.36022816]
[1641193782284,0.013942,46894.0,46893.0,2.48722816]
[1641193782581,0.013942,46894.0,46893.0,2.53472816]
[1641193782781,0.013942,46894.0,46893.0,1.93003761]
[1641193783281,0.013942,46894.0,46893.0,2.03003761]
[1641193784882,0.013942,46894.0,46893.0,2.08003761]
[1641193787820,0.013942,46894.0,46893.0,2.03003761]
[1641193791857,0.013942,46894.0,46893.0,2.1312473]
[1641193792056,0.013942,46894.0,46893.0,2.50498667]
[1641193792255,0.013942,46894.0,46893.0,3.02818176]
[1641193792458,0.00827675,46898.0,46895.0,1.327]
[1641193792655,0.00827675,46898.0,46897.0,1.75858612]
[1641193792861,0.00827675,46898.0,46897.0,2.67023932]
[1641193793059,0.00827675,46898.0,46897.0,2.82023932]
[1641193793309,0.27548279,46904.0,46898.0,1.59]
[1641193793511,0.27548279,46904.0,46903.0,1.86225694]
[1641193793714,0.27548279,46904.0,46903.0,2.95425407]
[1641193793910,0.27548279,46904.0,46903.0,3.33857088]
[1641193795314,0.27548279,46904.0,46903.0,3.52963088]
[1641193795512,0.26232346,46904.0,46903.0,4.4958967]
[1641193795719,0.00829392,46908.0,46906.0,1.12822407]
[1641193795913,0.00829392,46908.0,46907.0,3.81182948]
[1641193796112,0.00829392,46908.0,46907.0,4.03868948]